fUST/lending_fUST_20250911
["ID","MTS","AMOUNT","RATE_DAILY","PERIOD"]
[384803489,1757556641542,-485.21636054,0.00013952,2]
[384803490,1757556641551,-480.0,0.00013952,2]
[384803491,1757556641561,-484.30199315,0.00013952,2]
[384803492,1757556641570,-484.94375978,0.00013952,2]
[384803493,1757556641580,-480.0,0.00013952,2]
[384803494,1757556641591,-480.0,0.00013952,2]
[384803495,1757556641600,-480.0,0.00013952,2]
[384803496,1757556641609,-480.0,0.00013952,2]
[384803497,1757556641618,-169.89986287,0.00013952,2]
[384803498,1757556641627,-480.0,0.00013952,2]
[384803499,1757556641637,-486.89797848,0.00013952,2]
[384803500,1757556641646,-480.0,0.00013952,2]
[384803501,1757556641655,-417.3716813,0.00013952,2]
[384803502,1757556641664,-480.0,0.00013952,2]
[384803503,1757556641673,-480.0,0.00013952,2]
[384803504,1757556641683,-482.64080512,0.00013952,2]
[384803505,1757556641691,-252.94579883,0.00013952,2]
[384803506,1757556641701,-480.0,0.00013952,2]
[384803507,1757556641711,-480.0,0.00013952,2]
[384803508,1757556641720,-358.714,0.00013952,2]
[384803509,1757556641729,-480.0,0.00013952,2]
[384803510,1757556641739,-480.0,0.00013952,2]
[384803511,1757556641749,-156.00368292,0.00013952,2]
[384803512,1757556641758,-385.70658987,0.00013952,2]
[384803513,1757556641768,-480.0,0.00013952,2]
[384803514,1757556641777,-480.0,0.00013952,2]
[384803515,1757556641786,-226.72746349,0.00013952,2]
[384803516,1757556641795,-485.73553867,0.00013952,2]
[384803517,1757556641805,-484.32022846,0.00013952,2]
[384803518,1757556641815,-480.0,0.00013952,2]
[384803519,1757556641824,-485.60887216,0.00013952,2]
[384803520,1757556641835,-488.63247721,0.00013952,2]
[384803521,1757556641844,-480.0,0.00013952,2]
[384803522,1757556641854,-487.07705786,0.00013952,2]
[384803523,1757556641863,-480.0,0.00013952,2]
[384803524,1757556641873,-321.44957813,0.00013952,2]
[384803525,1757556641882,-480.0,0.00013952,2]
[384803526,1757556641891,-480.0,0.00013952,2]
[384803527,1757556641900,-489.28047654,0.00013952,2]
[384803528,1757556641911,-480.0,0.00013952,2]
[384803529,1757556641923,-482.08950354,0.00013952,2]
[384803530,1757556641934,-271.25947007,0.00013952,2]
[384803531,1757556641943,-475.65894934,0.00013952,2]
[384803532,1757556641952,-480.0,0.00013952,2]
[384803533,1757556641961,-480.0,0.00013952,2]
[384803534,1757556641970,-480.0,0.00013952,2]
[384803535,1757556641980,-483.36713682,0.00013952,2]
[384803536,1757556641989,-481.88021476,0.00013952,2]
[384803537,1757556641999,-481.72831179,0.00013952,2]
[384803538,1757556642009,-480.0,0.00013952,2]
[384803539,1757556642019,-480.0,0.00013952,2]
[384803540,1757556642027,-484.00793847,0.00013952,2]
[384803541,1757556642038,-304.713004,0.00013952,2]
[384803542,1757556642047,-304.713004,0.00013952,2]
[384803543,1757556642056,-151.0,0.00013952,2]
[384803544,1757556642065,-151.0,0.00013952,2]
[384803545,1757556642076,-304.713004,0.00013952,2]
[384803546,1757556642086,-304.713004,0.00013952,2]
[384803547,1757556642095,-151.0,0.00013952,2]
[384803548,1757556642104,-151.0,0.00013952,2]
[384803549,1757556642114,-304.713004,0.00013952,2]
[384803550,1757556642124,-304.713004,0.00013952,2]
[384803551,1757556642133,-304.713004,0.00013952,2]
[384803552,1757556642143,-304.712999,0.00013952,2]
[384803553,1757556642152,-487.87006241,0.00013952,2]
[384803554,1757556642161,-480.0,0.00013952,2]
[384803555,1757556642171,-480.0,0.00013952,2]
[384803556,1757556642181,-160.0,0.00013952,2]
[384803557,1757556642191,-217.67150996,0.00013952,2]
[384803558,1757556642199,-160.0,0.00013952,2]
[384803559,1757556642209,-229.72998139,0.00013953,2]
[384803560,1757556642219,-16378.8381213,0.00013954,2]
[384803561,1757556642228,-1098.95452817,0.00013955,2]
[384803562,1757556642238,-157.0,0.00013956,2]
[384803563,1757556642247,-157.0,0.00013956,2]
[384803564,1757556642257,-157.0,0.00013956,2]
[384803565,1757556642267,-306.33631818,0.00013956,2]
[384803566,1757556642277,-157.0,0.00013956,2]
[384803567,1757556642286,-500.0,0.00013956,2]
[384803568,1757556642295,-157.27342216,0.00013956,2]
[384803569,1757556642305,-157.0,0.00013956,2]
[384803570,1757556642316,-157.0,0.00013956,2]
[384803571,1757556642325,-290.33126471,0.00013956,2]
[384803572,1757556642336,-157.0,0.00013956,2]
[384803573,1757556642345,-157.0,0.00013956,2]
[384803574,1757556642355,-157.66685509,0.00013956,2]
[384803575,1757556642364,-246.21433363,0.00013956,2]
[384803576,1757556642374,-500.0,0.00013956,2]
[384803577,1757556642384,-157.26567239,0.00013956,2]
[384803578,1757556642394,-302.38762895,0.00013956,2]
[384803579,1757556642403,-232.9,0.00013956,2]
[384803580,1757556642413,-157.0,0.00013956,2]
[384803581,1757556642424,-157.0,0.00013956,2]
[384803582,1757556642434,-157.0,0.00013956,2]
[384803583,1757556642444,-500.0,0.00013956,2]
[384803584,1757556642454,-157.0,0.00013956,2]
[384803587,1757556642464,-303.48531767,0.00013957,2]
[384803589,1757556642474,-621.0,0.00013994,2]
[384803590,1757556642484,-168.0,0.0001401,2]
[384803592,1757556642495,-978.216,0.00014042,2]
[384803593,1757556642512,-2155.0,0.00014042,2]
[384803594,1757556642521,-636.21,0.00014042,2]
[384803595,1757556642530,-4032.0,0.00014055,2]
[384803596,1757556642540,-168.0,0.0001407,2]
[384803597,1757556642549,-36719.45669387,0.0001415,2]
[384803599,1757556643241,-485.12214955,0.00013948,2]
[384803600,1757556643254,-160.0,0.00013951,2]
[384803601,1757556643266,-410.675,0.00014055,2]
[384803602,1757556643280,-2393.26626855,0.0001415,2]
[384803603,1757556643295,-33610.84408642,0.0001415,2]
[384803614,1757556646112,-499.998744,0.0001415,2]
[384803615,1757556865134,904.97198108,0.00027,120]
[384803616,1757557021826,200.0,0.00027397,120]
[384803617,1757557022918,-168.0,0.00013939,2]
[384803618,1757557029393,168.0,0.00017,7]
[384803619,1757557053895,500.0,0.00024,30]
[384803620,1757557092563,195.577222,0.00013699,2]
[384803636,1757557465899,265.0,0.00027,120]
[384803637,1757557492742,200.0,0.00027,120]
[384803646,1757557585155,269.17873703,0.00013841,2]
[384803652,1757557649737,-180.00781624,0.0001393,2]
[384803659,1757557719603,1856.0,0.00027397,120]
[384803663,1757557792427,235.53139491,0.00013841,2]
[384803703,1757557832489,-300.0,0.00013926,2]
[384803705,1757557832499,-296.86858697,0.00013926,2]
[384803711,1757557832545,-903.13141303,0.00013926,2]
[384803712,1757557832555,-217.69300629,0.00013927,2]
[384803714,1757557832564,-530.95967032,0.00013927,2]
[384803716,1757557832573,-160.0,0.00013927,2]
[384803718,1757557832583,-160.0,0.00013927,2]
[384803720,1757557832592,-846.96613202,0.00013927,2]
[384803722,1757557832601,-233.10680167,0.00013927,2]
[384803725,1757557832610,-417.15472785,0.00013927,2]
[384803727,1757557832619,-160.0,0.00013927,2]
[384803729,1757557832629,-1200.0,0.0001393,2]
[384803732,1757557832638,-1742.70394966,0.00013932,2]
[384803735,1757557832649,-287.59272234,0.00013932,2]
[384803737,1757557832658,-480.0,0.00013938,2]
[384803738,1757557832667,-413.6752848,0.00013938,2]
[384803741,1757557832679,-200.8547152,0.00013938,2]
[384803743,1757557832689,-481.49589604,0.00013938,2]
[384803744,1757557832698,-480.0,0.00013938,2]
[384803745,1757557832707,-1315.76621328,0.00013938,2]
[384803754,1757557838373,-800.0,0.00013938,2]
[384803776,1757557998929,206.08997052,0.0001384,2]
[384803784,1757558204894,180.32872424,0.00013839,2]
[384803788,1757558339109,547.25,0.00012329,2]
[384803789,1757558341764,623.053283,0.00013728,2]
[384803790,1757558349593,285.48,0.00012329,2]
[384803791,1757558350047,222.38290773,0.00013728,2]
[384803792,1757558360200,237.9,0.00012329,2]
[384803793,1757558362371,185.79836,0.00013699,2]
[384803794,1757558365936,342.91748558,0.00013728,2]
[384803795,1757558370705,198.25,0.00012329,2]
[384803796,1757558381145,165.21,0.00012329,2]
[384803797,1757558391561,826.06,0.00012329,2]
[384803798,1757558410798,157.78763371,0.00013838,2]
[384803799,1757558514088,747.663939,0.00013744,2]
[384803800,1757558520626,3019.0,0.00027397,120]
[384803802,1757558549670,273.25372176,0.00013849,2]
[384803803,1757558616932,157.78763364,0.00013838,2]
[384803805,1757558734839,154.0,0.00027397,120]
[384803806,1757558764040,261.673512,0.00013498,2]
[384803807,1757558764437,315.463083,0.00013511,2]
[384803808,1757558764817,632.061622,0.00013511,2]
[384803809,1757558765384,476.43646033,0.00013511,2]
[384803810,1757558812263,157.78763364,0.00013838,2]
[384803813,1757558997697,157.78763364,0.00013837,2]
[384803814,1757559003114,1000.0,0.00027397,120]
[384803815,1757559025508,4706.1712817,0.000138,2]
[384803816,1757559025530,10000.01,0.000138,2]
[384803817,1757559025551,10000.01,0.000138,2]
[384803818,1757559025574,2797.42585621,0.000138,2]
[384803867,1757559032662,-600.3621039,0.00013915,2]
[384803869,1757559032673,-20.6378961,0.00013915,2]
[384803871,1757559032683,-300.0,0.00013925,2]
[384803873,1757559032692,-42.19361507,0.00013925,2]
[384803877,1757559032703,-636.16497065,0.00013925,2]
[384803915,1757559038545,-521.64141428,0.00013925,2]
[384803917,1757559038555,-81.11578124,0.00013925,2]
[384803924,1757559040579,-136.57722505,0.00013925,2]
[384803925,1757559040591,-530.95967032,0.00013925,2]
[384803926,1757559040601,-160.0,0.00013925,2]
[384803927,1757559040610,-160.0,0.00013925,2]
[384803928,1757559040620,-233.10680167,0.00013925,2]
[384803929,1757559040629,-417.15472785,0.00013925,2]
[384803930,1757559040638,-846.96613202,0.00013925,2]
[384803931,1757559040647,-160.0,0.00013925,2]
[384803932,1757559040656,-284.11732669,0.00013926,2]
[384803933,1757559040665,-1200.0,0.00013927,2]
[384803934,1757559040675,-2030.296672,0.0001393,2]
[384803935,1757559040685,-2000.0,0.0001393,2]
[384803936,1757559040695,-480.0,0.00013936,2]
[384803937,1757559040704,-484.82410048,0.00013936,2]
[384803938,1757559040713,-385.33615702,0.00013936,2]
[384803939,1757559040723,-480.0,0.00013936,2]
[384803940,1757559040732,-480.0,0.00013936,2]
[384803941,1757559040742,-588.92,0.00013936,2]
[384803942,1757559040751,-6134.98,0.00013936,2]
[384803943,1757559040760,-481.73441618,0.00013936,2]
[384803944,1757559040769,-480.0,0.00013936,2]
[384803945,1757559040778,-480.0,0.00013937,2]
[384803946,1757559040788,-480.0,0.00013937,2]
[384803947,1757559040798,-480.0,0.00013937,2]
[384803948,1757559040807,-480.0,0.00013937,2]
[384803949,1757559040816,-480.0,0.00013937,2]
[384803950,1757559040825,-481.20832553,0.00013937,2]
[384803951,1757559040835,-480.0,0.00013937,2]
[384803952,1757559040844,-480.0,0.00013937,2]
[384803953,1757559040854,-480.0,0.00013937,2]
[384803954,1757559040863,-480.0,0.00013937,2]
[384803955,1757559040872,-968.27,0.00013937,2]
[384803956,1757559040881,-480.0,0.00013937,2]
[384803957,1757559040891,-498.40401612,0.00013937,2]
[384803958,1757559040900,-579.3,0.00013937,2]
[384803959,1757559040910,-578.9948204,0.00013937,2]
[384803960,1757559040920,-492.08,0.00013937,2]
[384803961,1757559040929,-595.38111006,0.00013937,2]
[384803962,1757559040939,-1084.87,0.00013937,2]
[384803963,1757559040949,-2353.31,0.00013937,2]
[384803964,1757559040958,-480.0,0.00013937,2]
[384803965,1757559040967,-571.87,0.00013937,2]
[384803966,1757559040976,-353.81699238,0.00013937,2]
[384803967,1757559040985,-480.0,0.00013937,2]
[384803968,1757559040996,-480.0,0.00013937,2]
[384803969,1757559041007,-801.13,0.00013937,2]
[384803970,1757559041016,-503.75860037,0.00013937,2]
[384803971,1757559041027,-480.0,0.00013937,2]
[384803972,1757559041036,-484.90101182,0.00013938,2]
[384803973,1757559041046,-483.61231152,0.00013938,2]
[384803974,1757559041056,-500.0,0.00013938,2]
[384803975,1757559041066,-480.0,0.00013938,2]
[384803976,1757559041075,-488.76416606,0.00013938,2]
[384803977,1757559041085,-480.0,0.00013938,2]
[384803978,1757559041094,-486.63949232,0.00013938,2]
[384803979,1757559041103,-488.68177598,0.00013938,2]
[384803980,1757559041112,-480.0,0.00013938,2]
[384803981,1757559041122,-486.08382082,0.00013938,2]
[384803982,1757559041131,-480.0,0.00013938,2]
[384803983,1757559041140,-480.0,0.00013938,2]
[384803984,1757559041149,-422.44633528,0.00013938,2]
[384803985,1757559041158,-489.48155303,0.00013938,2]
[384803986,1757559041167,-327.0,0.00013938,2]
[384803987,1757559041178,-327.0,0.00013938,2]
[384803988,1757559041186,-327.0,0.00013938,2]
[384803989,1757559041195,-327.0,0.00013938,2]
[384803990,1757559041204,-327.0,0.00013938,2]
[384803991,1757559041214,-327.0,0.00013938,2]
[384803992,1757559041222,-327.0,0.00013938,2]
[384803993,1757559041232,-327.0,0.00013938,2]
[384803994,1757559041240,-327.0,0.00013938,2]
[384803995,1757559041250,-327.0,0.00013938,2]
[384803996,1757559041259,-441.5619726,0.00013938,2]
[384803997,1757559041268,-327.0,0.00013938,2]
[384803998,1757559041279,-355.66201562,0.00013938,2]
[384803999,1757559041288,-327.0,0.00013938,2]
[384804000,1757559041299,-327.0,0.00013938,2]
[384804001,1757559041308,-327.0,0.00013938,2]
[384804002,1757559041317,-327.0,0.00013938,2]
[384804003,1757559041326,-327.0,0.00013938,2]
[384804004,1757559041335,-327.0,0.00013938,2]
[384804005,1757559041344,-327.0,0.00013938,2]
[384804006,1757559041353,-327.0,0.00013938,2]
[384804007,1757559041362,-480.0,0.00013938,2]
[384804008,1757559041371,-487.10840404,0.00013938,2]
[384804009,1757559041381,-160.57717697,0.00013938,2]
[384804010,1757559041390,-151.0,0.00013938,2]
[384804011,1757559041400,-153.735437,0.00013938,2]
[384804012,1757559041410,-480.0,0.00013938,2]
[384804013,1757559041419,-157.14960407,0.00013938,2]
[384804014,1757559041428,-480.0,0.00013938,2]
[384804015,1757559041437,-523.42518599,0.00013938,2]
[384804016,1757559041446,-480.0,0.00013938,2]
[384804017,1757559041455,-461.24500603,0.00013938,2]
[384804018,1757559041464,-2225.14,0.00013938,2]
[384804019,1757559041473,-486.93728117,0.00013938,2]
[384804020,1757559041482,-480.0,0.00013938,2]
[384804021,1757559041492,-480.0,0.00013938,2]
[384804022,1757559041501,-480.0,0.00013938,2]
[384804023,1757559041511,-480.0,0.00013938,2]
[384804024,1757559041520,-301.717951,0.00013938,2]
[384804025,1757559041531,-480.0,0.00013938,2]
[384804026,1757559041541,-480.0,0.00013938,2]
[384804027,1757559041550,-480.0,0.00013938,2]
[384804028,1757559041561,-480.0,0.00013938,2]
[384804029,1757559041570,-327.0,0.00013938,2]
[384804030,1757559041580,-327.0,0.00013938,2]
[384804031,1757559041593,-327.0,0.00013938,2]
[384804032,1757559041603,-327.0,0.00013938,2]
[384804033,1757559041612,-327.0,0.00013938,2]
[384804034,1757559041623,-327.0,0.00013938,2]
[384804035,1757559041633,-327.0,0.00013938,2]
[384804036,1757559041642,-327.0,0.00013938,2]
[384804037,1757559041652,-327.0,0.00013938,2]
[384804038,1757559041662,-327.0,0.00013938,2]
[384804039,1757559041671,-327.0,0.00013938,2]
[384804040,1757559041680,-505.08119419,0.00013939,2]
[384804041,1757559041689,-480.0,0.00013939,2]
[384804042,1757559041698,-500.0,0.00013939,2]
[384804043,1757559041707,-19365.89496404,0.0001394,2]
[384804044,1757559041716,-531.9614856,0.00013948,2]
[384804045,1757559041725,-168.0,0.00013949,2]
[384804046,1757559041734,-480.0,0.00013949,2]
[384804047,1757559041744,-484.48776773,0.00013949,2]
[384804048,1757559041753,-484.20432576,0.00013949,2]
[384804049,1757559041763,-157.0,0.00013956,2]
[384804050,1757559041771,-157.0,0.00013956,2]
[384804051,1757559041780,-157.0,0.00013956,2]
[384804052,1757559041789,-157.0,0.00013956,2]
[384804053,1757559041798,-180.65966695,0.00013956,2]
[384804054,1757559041808,-157.0,0.00013956,2]
[384804055,1757559041817,-157.0,0.00013956,2]
[384804056,1757559041827,-157.0,0.00013956,2]
[384804057,1757559041836,-500.0,0.00013956,2]
[384804058,1757559041845,-157.0,0.00013956,2]
[384804059,1757559041855,-157.0,0.00013956,2]
[384804060,1757559041864,-157.0,0.00013956,2]
[384804061,1757559041873,-157.0,0.00013956,2]
[384804062,1757559041882,-157.0,0.00013956,2]
[384804063,1757559041891,-500.0,0.00013956,2]
[384804064,1757559041900,-188.40969675,0.00013956,2]
[384804065,1757559041910,-2105.41764886,0.00013985,2]
[384804066,1757559041919,-343.039,0.0001401,2]
[384804067,1757559041927,-621.0,0.0001401,2]
[384804068,1757559041936,-289.75498,0.00014024,2]
[384804069,1757559041945,-2183.31810187,0.0001404,2]
[384804070,1757559041954,-487.42,0.00014052,2]
[384804071,1757559041963,-593.031,0.00014075,2]
[384804072,1757559041972,-409.0,0.00014075,2]
[384804073,1757559041982,-2264.10087164,0.00014095,2]
[384804074,1757559041991,-3284.895561,0.00014106,2]
[384804075,1757559042000,-168.0,0.00014118,2]
[384804076,1757559042009,-550.77847528,0.0001415,2]
[384804077,1757559042018,-21828.15742076,0.0001415,2]
[384804099,1757559043515,-1157.46375104,0.0001415,2]
[384804101,1757559043618,-819.3586499,0.0001415,2]
[384804102,1757559043670,-427643.45108867,0.0001415,2]
[384804103,1757559043683,-12911.91597221,0.0001415,2]
[384804105,1757559043692,-168.0,0.00014198,2]
[384804106,1757559043702,-151.72170912,0.000142,2]
[384804107,1757559043712,-1015.28286432,0.00014202,2]
[384804112,1757559046064,-173.25523764,0.00013936,2]
[384804119,1757559046664,-306.74476236,0.00013936,2]
[384804120,1757559046674,-327.0,0.00013938,2]
[384804121,1757559046684,-327.0,0.00013938,2]
[384804122,1757559046694,-327.0,0.00013938,2]
[384804123,1757559046704,-327.0,0.00013938,2]
[384804124,1757559046713,-2945.92847109,0.00014202,2]
[384804125,1757559046723,-480.0,0.0001421,2]
[384804126,1757559046732,-480.0,0.0001421,2]
[384804127,1757559046741,-143.82342827,0.0001421,2]
[384804128,1757559046753,-336.17657173,0.0001421,2]
[384804129,1757559046762,-287.71700242,0.0001421,2]
[384804130,1757559046773,-301.20299758,0.0001421,2]
[384804131,1757559046782,-6134.98,0.0001421,2]
[384804132,1757559046792,-480.0,0.0001421,2]
[384804133,1757559046801,-480.0,0.00014211,2]
[384804134,1757559046811,-480.0,0.00014211,2]
[384804135,1757559046820,-480.0,0.00014211,2]
[384804136,1757559046829,-480.0,0.00014211,2]
[384804137,1757559046838,-480.0,0.00014211,2]
[384804138,1757559046847,-480.0,0.00014211,2]
[384804139,1757559046857,-480.0,0.00014211,2]
[384804140,1757559046866,-36.56243277,0.00014211,2]
[384804141,1757559046877,-931.70756723,0.00014211,2]
[384804142,1757559046886,-213.62426611,0.00014211,2]
[384804143,1757559046896,-579.3,0.00014211,2]
[384804144,1757559046905,-492.08,0.00014211,2]
[384804145,1757559046914,-1084.87,0.00014211,2]
[384804146,1757559046925,-982.1181667,0.00014211,2]
[384804147,1757559046936,-1134.9599999,0.00014211,2]
[384804148,1757559046947,-236.2318334,0.00014211,2]
[384804149,1757559046957,-571.87,0.00014211,2]
[384804150,1757559046966,-480.0,0.00014211,2]
[384804151,1757559046975,-480.0,0.00014211,2]
[384804152,1757559046985,-151.5207666,0.00014211,2]
[384804153,1757559046997,-120.65620684,0.00014211,2]
[384804154,1757559047007,-740.18379316,0.00014211,2]
[384804155,1757559047018,-60.94620684,0.00014211,2]
[384804156,1757559047028,-480.0,0.00014211,2]
[384804157,1757559047037,-480.0,0.00014212,2]
[384804158,1757559047047,-529.70172956,0.00014212,2]
[384804159,1757559047056,-193.70130865,0.00014212,2]
[384804160,1757559047067,-286.29869135,0.00014212,2]
[384804161,1757559047076,-480.0,0.00014212,2]
[384804162,1757559047086,-485.94259476,0.00014212,2]
[384804163,1757559047096,-275.86160232,0.00014212,2]
[384804164,1757559047230,-480.0,0.00014212,2]
[384804165,1757559047240,-480.0,0.00014212,2]
[384804166,1757559047249,-160.04141405,0.00014212,2]
[384804167,1757559047258,-292.9986907,0.00014212,2]
[384804168,1757559047270,-1932.1413093,0.00014212,2]
[384804169,1757559047279,-191.9353418,0.00014212,2]
[384804170,1757559047288,-480.0,0.00014212,2]
[384804171,1757559047298,-486.73830557,0.00014212,2]
[384804172,1757559047307,-480.0,0.00014212,2]
[384804173,1757559047316,-480.0,0.00014212,2]
[384804174,1757559047325,-480.0,0.00014212,2]
[384804175,1757559047334,-480.0,0.00014212,2]
[384804176,1757559047344,-480.0,0.00014212,2]
[384804177,1757559047353,-485.11530339,0.00014223,2]
[384804178,1757559047362,-168.0,0.00014224,2]
[384804179,1757559047371,-157.0,0.0001423,2]
[384804180,1757559047381,-157.0,0.0001423,2]
[384804181,1757559047390,-157.0,0.0001423,2]
[384804182,1757559047399,-157.0,0.0001423,2]
[384804183,1757559047414,-157.0,0.0001423,2]
[384804184,1757559047425,-157.0,0.0001423,2]
[384804185,1757559047434,-186.91232853,0.0001423,2]
[384804186,1757559047444,-500.0,0.0001423,2]
[384804187,1757559047453,-157.0,0.0001423,2]
[384804188,1757559047463,-157.0,0.0001423,2]
[384804189,1757559047472,-157.0,0.0001423,2]
[384804190,1757559047482,-216.10717611,0.0001423,2]
[384804191,1757559047493,-187.43571984,0.0001423,2]
[384804192,1757559047503,-500.0,0.0001423,2]
[384804193,1757559047512,-300.0,0.00014249,2]
[384804194,1757559047521,-300.0,0.00014249,2]
[384804195,1757559047530,-300.0,0.00014249,2]
[384804196,1757559047540,-300.0,0.00014249,2]
[384804197,1757559047548,-300.0,0.00014249,2]
[384804198,1757559047557,-300.0,0.00014249,2]
[384804199,1757559047566,-300.0,0.00014249,2]
[384804200,1757559047576,-300.0,0.00014249,2]
[384804201,1757559047590,-300.0,0.00014249,2]
[384804202,1757559047599,-300.0,0.00014249,2]
[384804203,1757559047608,-300.0,0.00014249,2]
[384804204,1757559047617,-300.0,0.00014249,2]
[384804205,1757559047627,-300.0,0.00014249,2]
[384804206,1757559047638,-300.0,0.00014249,2]
[384804207,1757559047648,-300.0,0.00014249,2]
[384804208,1757559047657,-196.0,0.00014273,2]
[384804209,1757559047667,-168.0,0.0001429,2]
[384804210,1757559047677,-168.0,0.00014384,2]
[384804211,1757559047687,-600.0,0.00014386,2]
[384804212,1757559047696,-151.0,0.000144,2]
[384804213,1757559047705,-157.0796268,0.000144,2]
[384804214,1757559047714,-196.0,0.00014445,2]
[384804215,1757559047724,-1567.43203072,0.00014466,2]
[384804216,1757559049840,717.757382,0.00013744,2]
[384804217,1757559063342,173.25523764,0.00013798,2]
[384804220,1757559186807,5442.09467005,0.0001384,2]
[384804222,1757559499515,176.508442,0.00013699,2]
[384804223,1757559505605,236.55753588,0.00013838,2]
[384804225,1757559657286,-217.69300629,0.00013931,2]
[384804226,1757559657308,-157.62398512,0.00013931,2]
[384804227,1757559658345,-142.37601488,0.00013931,2]
[384804228,1757559658368,-15.24797024,0.00013931,2]
[384804230,1757559671722,300.0,0.00013791,2]
[384804231,1757559672656,334.0,0.00023288,120]
[384804233,1757559697939,156.41087622,0.00013838,2]
[384804234,1757559697960,50.57696764,0.00013838,2]
[384804236,1757559888209,181.11436336,0.00013838,2]
[384804237,1757559966838,213.399259,0.0001351,2]
[384804238,1757559967226,300.0820684,0.0001351,2]
[384804240,1757560074650,158.47506794,0.00013838,2]
[384804282,1757560231843,-300.0,0.00013924,2]
[384804284,1757560231853,-578.17239486,0.00013924,2]
[384804290,1757560231895,-621.82760514,0.00013924,2]
[384804292,1757560231905,-160.0,0.00013925,2]
[384804294,1757560231914,-13.32549942,0.00013925,2]
[384804299,1757560231950,-146.67450058,0.00013925,2]
[384804301,1757560231959,-530.95967032,0.00013925,2]
[384804303,1757560231968,-417.15472785,0.00013925,2]
[384804305,1757560231977,-23.33264364,0.00013925,2]
[384804307,1757560231989,-209.77415803,0.00013925,2]
[384804309,1757560231997,-337.90163178,0.00013925,2]
[384804380,1757560237795,-509.06450024,0.00013925,2]
[384804382,1757560237805,-160.0,0.00013925,2]
[384804384,1757560237815,-349.0,0.00013926,2]
[384804386,1757560237824,-217.69300629,0.00013927,2]
[384804388,1757560237833,-480.0,0.00013936,2]
[384804390,1757560237843,-480.0,0.00013936,2]
[384804392,1757560237854,-480.0,0.00013936,2]
[384804394,1757560237863,-280.68070055,0.00013936,2]
[384804395,1757560237872,-480.0,0.00013936,2]
[384804396,1757560237882,-485.34988352,0.00013936,2]
[384804398,1757560237891,-480.0,0.00013936,2]
[384804399,1757560237901,-480.0,0.00013936,2]
[384804400,1757560237910,-929.88,0.00013936,2]
[384804401,1757560237920,-531.02,0.00013936,2]
[384804402,1757560237929,-480.0,0.00013936,2]
[384804403,1757560237939,-480.0,0.00013936,2]
[384804404,1757560237948,-524.21,0.00013936,2]
[384804405,1757560237957,-539.84,0.00013936,2]
[384804406,1757560237966,-5623.73,0.00013936,2]
[384804407,1757560237976,-480.0,0.00013937,2]
[384804408,1757560237985,-480.0,0.00013937,2]
[384804409,1757560237995,-480.0,0.00013937,2]
[384804410,1757560238006,-480.0,0.00013937,2]
[384804411,1757560238016,-480.0,0.00013937,2]
[384804412,1757560238025,-480.0,0.00013937,2]
[384804413,1757560238035,-480.0,0.00013937,2]
[384804414,1757560238044,-480.0,0.00013937,2]
[384804415,1757560238053,-480.0,0.00013937,2]
[384804416,1757560238062,-148.16408703,0.00013937,2]
[384804417,1757560238075,-331.83591297,0.00013937,2]
[384804418,1757560238086,-350.98339179,0.00013937,2]
[384804419,1757560238098,-129.01660821,0.00013937,2]
[384804420,1757560238108,-373.14729306,0.00013937,2]